[Event "Titled Tuesday Blitz November 14 Late 2023"]
[White "Curtis, John"]
[Black "Gasparyan, David"]
[WhiteFideId "3200256"]
[BlackFideId "13311980"]
[WhiteElo "2169"]
[BlackElo "2485"]
[Result "0-1"]
[Round "4"]
[TimeControl "180+1"]
[Date "2023.11.14"]
[WhiteClock "0:00:12"]
[BlackClock "0:00:50"]
[Board "155"]

1. e4 {[%clk 0:03:00]}  c5 {[%clk 0:02:58]} 2. Nf3 {[%clk 0:02:59]}  Nc6 {[%clk 0:02:58]} 3. c3 {[%clk 0:02:58]}  e6 {[%clk 0:02:57]} 4. d4 {[%clk 0:02:58]}  d5 {[%clk 0:02:57]} 5. e5 {[%clk 0:02:57]}  Qb6 {[%clk 0:02:55]} 6. Bd3 {[%clk 0:02:57]}  cxd4 {[%clk 0:02:49]} 7. cxd4 {[%clk 0:02:56]}  Bb4+ {[%clk 0:02:49]} 8. Kf1 {[%clk 0:02:53]}  Bd7 {[%clk 0:02:45]} 9. Be3 {[%clk 0:02:44]}  Nh6 {[%clk 0:02:41]} 10. a3 {[%clk 0:02:34]}  Be7 {[%clk 0:02:40]} 11. Nc3 {[%clk 0:02:16]}  Ng4 {[%clk 0:02:37]} 12. Na4 {[%clk 0:02:13]}  Nxe3+ {[%clk 0:02:28]} 13. fxe3 {[%clk 0:02:13]}  Qc7 {[%clk 0:02:28]} 14. Rc1 {[%clk 0:02:11]}  O-O {[%clk 0:02:18]} 15. Nc5 {[%clk 0:02:10]}  Be8 {[%clk 0:02:09]} 16. Qc2 {[%clk 0:02:04]}  g6 {[%clk 0:02:03]} 17. Kf2 {[%clk 0:01:52]}  Rc8 {[%clk 0:01:59]} 18. Rhf1 {[%clk 0:01:51]}  b6 {[%clk 0:01:59]} 19. Na6 {[%clk 0:01:50]}  Qb7 {[%clk 0:01:54]} 20. Qe2 {[%clk 0:01:48]}  Bd7 {[%clk 0:01:52]} 21. b4 {[%clk 0:01:47]}  f6 {[%clk 0:01:51]} 22. exf6 {[%clk 0:01:46]}  Bxf6 {[%clk 0:01:50]} 23. Kg1 {[%clk 0:01:46]}  Kg7 {[%clk 0:01:44]} 24. Qb2 {[%clk 0:01:23]}  Ne7 {[%clk 0:01:40]} 25. b5 {[%clk 0:01:19]}  Nf5 {[%clk 0:01:39]} 26. Bxf5 {[%clk 0:01:16]}  exf5 {[%clk 0:01:39]} 27. Ne5 {[%clk 0:01:12]}  Rxc1 {[%clk 0:01:32]} 28. Rxc1 {[%clk 0:01:11]}  Rc8 {[%clk 0:01:32]} 29. Nxd7 {[%clk 0:01:03]}  Qxd7 {[%clk 0:01:29]} 30. a4 {[%clk 0:00:52]}  Bg5 {[%clk 0:01:23]} 31. Kf2 {[%clk 0:00:45]}  Qd8 {[%clk 0:00:57]} 32. g3 {[%clk 0:00:31]}  Bxe3+ {[%clk 0:00:53]} 33. Kxe3 {[%clk 0:00:26]}  Rxc1 {[%clk 0:00:52]} 34. h4 {[%clk 0:00:20]}  Qe7+ {[%clk 0:00:51]} 35. Kf3 {[%clk 0:00:12]}  Qe4+ {[%clk 0:00:50]} 0-1


[Site "https://www.chess.com"]

[Event "Titled Tuesday Blitz November 14 Late 2023"]
[White "Weisz, Bryan"]
[Black "Mariia89"]
[WhiteFideId "30934133"]
[WhiteElo "2427"]
[BlackElo "2166"]
[Result "1-0"]
[Round "4"]
[TimeControl "180+1"]
[Date "2023.11.14"]
[WhiteClock "0:00:15"]
[BlackClock "0:00:02"]
[Board "156"]

1. d3 {[%clk 0:03:00]}  c5 {[%clk 0:02:58]} 2. Bg5 {[%clk 0:02:49]}  h6 {[%clk 0:02:54]} 3. Bh4 {[%clk 0:02:49]}  Nc6 {[%clk 0:02:52]} 4. Nc3 {[%clk 0:02:50]}  d5 {[%clk 0:02:51]} 5. e4 {[%clk 0:02:49]}  d4 {[%clk 0:02:50]} 6. Nd5 {[%clk 0:02:50]}  g5 {[%clk 0:02:40]} 7. Bg3 {[%clk 0:02:49]}  e5 {[%clk 0:02:36]} 8. h4 {[%clk 0:02:43]}  Be6 {[%clk 0:02:25]} 9. hxg5 {[%clk 0:02:42]}  Bxd5 {[%clk 0:02:23]} 10. exd5 {[%clk 0:02:42]}  Qxd5 {[%clk 0:02:23]} 11. gxh6 {[%clk 0:02:41]}  Rxh6 {[%clk 0:02:21]} 12. Rxh6 {[%clk 0:02:38]}  Bxh6 {[%clk 0:02:20]} 13. Qf3 {[%clk 0:02:34]}  Qe6 {[%clk 0:02:12]} 14. a3 {[%clk 0:02:19]}  Nf6 {[%clk 0:02:00]} 15. Bh4 {[%clk 0:02:15]}  Nd5 {[%clk 0:01:51]} 16. Nh3 {[%clk 0:02:12]}  Nce7 {[%clk 0:01:31]} 17. Bxe7 {[%clk 0:02:02]}  Nxe7 {[%clk 0:01:31]} 18. Qxb7 {[%clk 0:02:02]}  Rc8 {[%clk 0:01:16]} 19. Qxa7 {[%clk 0:01:54]}  e4 {[%clk 0:01:15]} 20. Be2 {[%clk 0:01:40]}  e3 {[%clk 0:01:12]} 21. Qb7 {[%clk 0:01:33]}  exf2+ {[%clk 0:00:45]} 22. Nxf2 {[%clk 0:01:34]}  Qe3 {[%clk 0:00:43]} 23. Rd1 {[%clk 0:01:22]}  Kf8 {[%clk 0:00:37]} 24. Qf3 {[%clk 0:01:16]}  Qe6 {[%clk 0:00:32]} 25. Ne4 {[%clk 0:01:11]}  Nd5 {[%clk 0:00:28]} 26. Qh3 {[%clk 0:00:43]}  Ne3 {[%clk 0:00:27]} 27. Qxe6 {[%clk 0:00:38]}  Nxc2+ {[%clk 0:00:27]} 28. Kf2 {[%clk 0:00:36]}  fxe6 {[%clk 0:00:26]} 29. Rh1 {[%clk 0:00:35]}  Be3+ {[%clk 0:00:25]} 30. Kf3 {[%clk 0:00:35]}  Kg7 {[%clk 0:00:17]} 31. Bd1 {[%clk 0:00:30]}  Rf8+ {[%clk 0:00:09]} 32. Kg3 {[%clk 0:00:26]}  Bf4+ {[%clk 0:00:08]} 33. Kg4 {[%clk 0:00:25]}  Ne3+ {[%clk 0:00:08]} 34. Kf3 {[%clk 0:00:22]}  Bd6+ {[%clk 0:00:05]} 35. Ke2 {[%clk 0:00:22]}  Be7 {[%clk 0:00:05]} 36. Bb3 {[%clk 0:00:20]}  e5 {[%clk 0:00:02]} 37. Rh3 {[%clk 0:00:15]}  Rb8 {[%clk 0:00:01]} 38. Rg3+ {[%clk 0:00:15]}  Kf8 {[%clk 0:00:02]} 39. Rg8# {[%clk 0:00:15]} 1-0


[Site "https://www.chess.com"]

[Event "Titled Tuesday Blitz November 14 Late 2023"]
[White "Michalski, Olaf"]
[Black "AndresDelgado77"]
[WhiteFideId "1106740"]
[WhiteElo "2131"]
[BlackElo "2325"]
[Result "0-1"]
[Round "4"]
[TimeControl "180+1"]
[Date "2023.11.14"]
[WhiteClock "0:00:00"]
[BlackClock "0:00:58"]
[Board "159"]

1. d4 {[%clk 0:03:00]}  Nf6 {[%clk 0:02:57]} 2. c4 {[%clk 0:03:00]}  e5 {[%clk 0:02:57]} 3. dxe5 {[%clk 0:03:00]}  Ng4 {[%clk 0:02:57]} 4. Bf4 {[%clk 0:02:59]}  g5 {[%clk 0:02:56]} 5. Bg3 {[%clk 0:02:58]}  Bg7 {[%clk 0:02:57]} 6. Nf3 {[%clk 0:02:56]}  Nc6 {[%clk 0:02:57]} 7. e3 {[%clk 0:02:46]}  Ngxe5 {[%clk 0:02:54]} 8. Nxe5 {[%clk 0:02:43]}  Nxe5 {[%clk 0:02:55]} 9. Nc3 {[%clk 0:02:42]}  d6 {[%clk 0:02:53]} 10. Be2 {[%clk 0:02:41]}  Be6 {[%clk 0:02:51]} 11. O-O {[%clk 0:02:32]}  Qd7 {[%clk 0:02:48]} 12. c5 {[%clk 0:01:55]}  dxc5 {[%clk 0:02:32]} 13. Ne4 {[%clk 0:01:55]}  h5 {[%clk 0:02:16]} 14. Nxc5 {[%clk 0:01:25]}  Qxd1 {[%clk 0:02:12]} 15. Rfxd1 {[%clk 0:01:25]}  Bc8 {[%clk 0:01:59]} 16. f4 {[%clk 0:00:52]}  h4 {[%clk 0:01:58]} 17. Bf2 {[%clk 0:00:43]}  gxf4 {[%clk 0:01:55]} 18. exf4 {[%clk 0:00:43]}  Ng6 {[%clk 0:01:55]} 19. f5 {[%clk 0:00:20]}  Ne7 {[%clk 0:01:14]} 20. Bf3 {[%clk 0:00:06]}  c6 {[%clk 0:01:05]} 21. Ne4 {[%clk 0:00:04]}  Nxf5 {[%clk 0:01:02]} 22. Re1 {[%clk 0:00:00]}  O-O {[%clk 0:00:58]} 0-1


[Site "https://www.chess.com"]

[Event "Titled Tuesday Blitz November 14 Late 2023"]
[White "Lopez Del Alamo, Antonio"]
[Black "Fernandez Hernandez, Gerardo"]
[WhiteFideId "2227339"]
[BlackFideId "2207400"]
[WhiteElo "2325"]
[BlackElo "2113"]
[Result "0-1"]
[Round "4"]
[TimeControl "180+1"]
[Date "2023.11.14"]
[WhiteClock "0:00:03"]
[BlackClock "0:00:48"]
[Board "160"]

1. e4 {[%clk 0:00:24]}  e6 {[%clk 0:02:59]} 2. d3 {[%clk 0:00:23]}  d5 {[%clk 0:02:59]} 3. Nd2 {[%clk 0:00:22]}  Nf6 {[%clk 0:03:00]} 4. Ngf3 {[%clk 0:00:23]}  Nc6 {[%clk 0:02:59]} 5. c3 {[%clk 0:00:22]}  dxe4 {[%clk 0:02:56]} 6. dxe4 {[%clk 0:00:21]}  a5 {[%clk 0:02:55]} 7. a4 {[%clk 0:00:20]}  e5 {[%clk 0:02:55]} 8. Bb5 {[%clk 0:00:19]}  Bd6 {[%clk 0:02:54]} 9. Qe2 {[%clk 0:00:20]}  O-O {[%clk 0:02:53]} 10. O-O {[%clk 0:00:20]}  Ne7 {[%clk 0:02:51]} 11. Re1 {[%clk 0:00:18]}  Ng6 {[%clk 0:02:50]} 12. Nf1 {[%clk 0:00:18]}  c6 {[%clk 0:02:48]} 13. Bc4 {[%clk 0:00:17]}  Qe7 {[%clk 0:02:48]} 14. Ng3 {[%clk 0:00:17]}  Bc5 {[%clk 0:02:32]} 15. h3 {[%clk 0:00:12]}  Nf4 {[%clk 0:02:27]} 16. Bxf4 {[%clk 0:00:12]}  exf4 {[%clk 0:02:28]} 17. Nf5 {[%clk 0:00:11]}  Bxf5 {[%clk 0:02:28]} 18. exf5 {[%clk 0:00:12]}  Qxe2 {[%clk 0:02:24]} 19. Rxe2 {[%clk 0:00:13]}  Rfe8 {[%clk 0:02:25]} 20. Rae1 {[%clk 0:00:12]}  Rxe2 {[%clk 0:02:24]} 21. Rxe2 {[%clk 0:00:13]}  Re8 {[%clk 0:02:15]} 22. Ne5 {[%clk 0:00:11]}  Re7 {[%clk 0:02:09]} 23. Kf1 {[%clk 0:00:08]}  Bd6 {[%clk 0:02:07]} 24. Nxf7 {[%clk 0:00:08]}  Rxf7 {[%clk 0:02:04]} 25. Rd2 {[%clk 0:00:08]}  Bf8 {[%clk 0:01:48]} 26. Rd8 {[%clk 0:00:07]}  Nd5 {[%clk 0:01:40]} 27. Bxd5 {[%clk 0:00:06]}  cxd5 {[%clk 0:01:39]} 28. Rxd5 {[%clk 0:00:07]}  b6 {[%clk 0:01:35]} 29. Ke2 {[%clk 0:00:07]}  Bc5 {[%clk 0:01:35]} 30. f3 {[%clk 0:00:06]}  Re7+ {[%clk 0:01:34]} 31. Kd3 {[%clk 0:00:06]}  Kf7 {[%clk 0:01:31]} 32. Kc4 {[%clk 0:00:07]}  Kf6 {[%clk 0:01:29]} 33. b4 {[%clk 0:00:07]}  axb4 {[%clk 0:01:25]} 34. cxb4 {[%clk 0:00:08]}  Be3 {[%clk 0:01:24]} 35. Rd6+ {[%clk 0:00:08]}  Kxf5 {[%clk 0:01:23]} 36. Kb5 {[%clk 0:00:08]}  Ke5 {[%clk 0:01:14]} 37. Rc6 {[%clk 0:00:06]}  g5 {[%clk 0:01:10]} 38. a5 {[%clk 0:00:04]}  bxa5 {[%clk 0:01:10]} 39. bxa5 {[%clk 0:00:05]}  h5 {[%clk 0:01:08]} 40. a6 {[%clk 0:00:03]}  Kd4 {[%clk 0:01:02]} 41. Rh6 {[%clk 0:00:03]}  h4 {[%clk 0:00:52]} 42. Rg6 {[%clk 0:00:03]}  Re5+ {[%clk 0:00:52]} 43. Kc6 {[%clk 0:00:03]}  Kd3 {[%clk 0:00:52]} 44. Kb7 {[%clk 0:00:03]}  Ke2 {[%clk 0:00:51]} 45. a7 {[%clk 0:00:03]}  Bxa7 {[%clk 0:00:50]} 46. Kxa7 {[%clk 0:00:03]}  Kf2 {[%clk 0:00:50]} 47. Kb6 {[%clk 0:00:02]}  Kxg2 {[%clk 0:00:51]} 48. Kc6 {[%clk 0:00:03]}  Kxf3 {[%clk 0:00:48]} 49. Kd6 {[%clk 0:00:03]}  Ra5 {[%clk 0:00:48]} 0-1


[Site "https://www.chess.com"]

[Event "Titled Tuesday Blitz November 14 Late 2023"]
[White "Minina, Veronika"]
[Black "miraitrunks"]
[WhiteFideId "4174780"]
[WhiteElo "2290"]
[BlackElo "2071"]
[Result "0-1"]
[Round "4"]
[TimeControl "180+1"]
[Date "2023.11.14"]
[WhiteClock "0:00:00"]
[BlackClock "0:00:35"]
[Board "162"]

1. Nf3 {[%clk 0:02:55]}  c5 {[%clk 0:02:59]} 2. g3 {[%clk 0:02:56]}  Nc6 {[%clk 0:03:00]} 3. c4 {[%clk 0:02:56]}  g6 {[%clk 0:03:00]} 4. Bg2 {[%clk 0:02:57]}  Bg7 {[%clk 0:03:01]} 5. O-O {[%clk 0:02:57]}  e5 {[%clk 0:03:01]} 6. d3 {[%clk 0:02:57]}  Nge7 {[%clk 0:03:00]} 7. Nc3 {[%clk 0:02:58]}  O-O {[%clk 0:03:00]} 8. a3 {[%clk 0:02:58]}  h6 {[%clk 0:02:59]} 9. Rb1 {[%clk 0:02:58]}  a5 {[%clk 0:02:58]} 10. Ne1 {[%clk 0:02:55]}  d6 {[%clk 0:02:58]} 11. Nc2 {[%clk 0:02:55]}  Be6 {[%clk 0:02:59]} 12. Bd2 {[%clk 0:02:53]}  Qd7 {[%clk 0:02:58]} 13. Re1 {[%clk 0:02:53]}  Bh3 {[%clk 0:02:57]} 14. Bh1 {[%clk 0:02:53]}  f5 {[%clk 0:02:57]} 15. b4 {[%clk 0:02:50]}  axb4 {[%clk 0:02:48]} 16. axb4 {[%clk 0:02:51]}  f4 {[%clk 0:02:26]} 17. bxc5 {[%clk 0:02:44]}  dxc5 {[%clk 0:02:25]} 18. Na1 {[%clk 0:02:36]}  fxg3 {[%clk 0:02:22]} 19. hxg3 {[%clk 0:02:32]}  h5 {[%clk 0:01:54]} 20. Nb3 {[%clk 0:02:31]}  b6 {[%clk 0:01:52]} 21. Na1 {[%clk 0:02:07]}  h4 {[%clk 0:01:41]} 22. Ne4 {[%clk 0:01:52]}  hxg3 {[%clk 0:01:30]} 23. Nxg3 {[%clk 0:01:53]}  Nf5 {[%clk 0:01:30]} 24. Rxb6 {[%clk 0:01:50]}  Nxg3 {[%clk 0:01:29]} 25. Bd5+ {[%clk 0:00:49]}  Kh8 {[%clk 0:01:24]} 26. e3 {[%clk 0:00:25]}  Qf5 {[%clk 0:01:02]} 27. Re2 {[%clk 0:00:14]}  Qxd3 {[%clk 0:00:43]} 28. fxg3 {[%clk 0:00:10]}  Rf1+ {[%clk 0:00:42]} 29. Qxf1 {[%clk 0:00:10]}  Bxf1 {[%clk 0:00:43]} 30. Rh2+ {[%clk 0:00:09]}  Bh6 {[%clk 0:00:43]} 31. Rxh6+ {[%clk 0:00:08]}  Kg7 {[%clk 0:00:43]} 32. Bxc6 {[%clk 0:00:08]}  Rxa1 {[%clk 0:00:40]} 33. Rb7+ {[%clk 0:00:05]}  Kxh6 {[%clk 0:00:35]} 34. e4+ {[%clk 0:00:00]}  Qxd2 {[%clk 0:00:35]} 0-1


[Site "https://www.chess.com"]

[Event "Titled Tuesday Blitz November 14 Late 2023"]
[White "Broca Jimenez, Fernando"]
[Black "Desideri, Ricardo Maruchi"]
[WhiteFideId "5104742"]
[BlackFideId "2110440"]
[WhiteElo "2204"]
[BlackElo "1979"]
[Result "1-0"]
[Round "4"]
[TimeControl "180+1"]
[Date "2023.11.14"]
[WhiteClock "0:00:34"]
[BlackClock "0:00:00"]
[Board "165"]

1. e4 {[%clk 0:03:00]}  c5 {[%clk 0:02:59]} 2. c3 {[%clk 0:02:59]}  g6 {[%clk 0:02:57]} 3. d4 {[%clk 0:02:58]}  cxd4 {[%clk 0:02:58]} 4. cxd4 {[%clk 0:02:59]}  d5 {[%clk 0:02:58]} 5. e5 {[%clk 0:02:58]}  Nh6 {[%clk 0:02:57]} 6. Nc3 {[%clk 0:02:59]}  Bg7 {[%clk 0:02:56]} 7. Bb5+ {[%clk 0:02:54]}  Nc6 {[%clk 0:02:54]} 8. Bg5 {[%clk 0:02:49]}  O-O {[%clk 0:02:50]} 9. h3 {[%clk 0:02:49]}  f6 {[%clk 0:02:49]} 10. exf6 {[%clk 0:02:44]}  exf6 {[%clk 0:02:48]} 11. Bf4 {[%clk 0:02:40]}  Re8+ {[%clk 0:02:48]} 12. Nge2 {[%clk 0:02:40]}  Nf5 {[%clk 0:02:48]} 13. O-O {[%clk 0:02:37]}  a6 {[%clk 0:02:47]} 14. Ba4 {[%clk 0:02:32]}  Be6 {[%clk 0:02:36]} 15. Rc1 {[%clk 0:02:24]}  Bf7 {[%clk 0:02:34]} 16. Bxc6 {[%clk 0:02:12]}  bxc6 {[%clk 0:02:31]} 17. Na4 {[%clk 0:02:12]}  Rxe2 {[%clk 0:02:09]} 18. Qxe2 {[%clk 0:02:04]}  Nxd4 {[%clk 0:02:09]} 19. Qd2 {[%clk 0:01:46]}  f5 {[%clk 0:02:01]} 20. Be3 {[%clk 0:01:42]}  Ne6 {[%clk 0:01:06]} 21. Rfd1 {[%clk 0:01:38]}  Qe8 {[%clk 0:00:50]} 22. Nc5 {[%clk 0:01:31]}  Nxc5 {[%clk 0:00:25]} 23. Bxc5 {[%clk 0:01:27]}  Rb8 {[%clk 0:00:22]} 24. b3 {[%clk 0:01:22]}  Qd7 {[%clk 0:00:20]} 25. Re1 {[%clk 0:01:20]}  Rb5 {[%clk 0:00:18]} 26. b4 {[%clk 0:00:46]}  Bf6 {[%clk 0:00:11]} 27. a4 {[%clk 0:00:44]}  Rb8 {[%clk 0:00:09]} 28. Re2 {[%clk 0:00:41]}  Kg7 {[%clk 0:00:10]} 29. Rce1 {[%clk 0:00:40]}  a5 {[%clk 0:00:07]} 30. bxa5 {[%clk 0:00:38]}  Rb3 {[%clk 0:00:06]} 31. a6 {[%clk 0:00:36]}  Bc3 {[%clk 0:00:04]} 32. Bd4+ {[%clk 0:00:36]}  Bxd4 {[%clk 0:00:03]} 33. Qxd4+ {[%clk 0:00:37]}  Kg8 {[%clk 0:00:02]} 34. Re7 {[%clk 0:00:35]}  Qd6 {[%clk 0:00:00]} 35. a7 {[%clk 0:00:34]} 1-0


[Site "https://www.chess.com"]

[Event "Titled Tuesday Blitz November 14 Late 2023"]
[White "Gyulamiryan-koryun"]
[Black "Darko-Dimitrijevic"]
[WhiteElo "1873"]
[BlackElo "2196"]
[Result "0-1"]
[Round "4"]
[TimeControl "180+1"]
[Date "2023.11.14"]
[WhiteClock "0:00:00"]
[BlackClock "0:00:10"]
[Board "166"]

1. e4 {[%clk 0:02:57]}  d6 {[%clk 0:02:59]} 2. d4 {[%clk 0:02:56]}  c6 {[%clk 0:02:55]} 3. f4 {[%clk 0:02:55]}  Nf6 {[%clk 0:02:38]} 4. Nc3 {[%clk 0:02:53]}  Qb6 {[%clk 0:02:29]} 5. Nf3 {[%clk 0:02:51]}  Bg4 {[%clk 0:01:27]} 6. Be3 {[%clk 0:02:37]}  d5 {[%clk 0:01:23]} 7. e5 {[%clk 0:02:19]}  Ne4 {[%clk 0:01:22]} 8. Be2 {[%clk 0:01:54]}  Qxb2 {[%clk 0:01:16]} 9. Nxe4 {[%clk 0:01:54]}  dxe4 {[%clk 0:01:15]} 10. Nd2 {[%clk 0:01:48]}  Bxe2 {[%clk 0:01:14]} 11. Kxe2 {[%clk 0:01:48]}  e6 {[%clk 0:01:09]} 12. Rb1 {[%clk 0:01:42]}  Qxa2 {[%clk 0:01:07]} 13. Rxb7 {[%clk 0:01:41]}  Qa6+ {[%clk 0:01:07]} 14. Kf2 {[%clk 0:01:36]}  Qxb7 {[%clk 0:01:06]} 15. Nxe4 {[%clk 0:01:37]}  Nd7 {[%clk 0:01:03]} 16. Qa1 {[%clk 0:01:33]}  Rb8 {[%clk 0:00:58]} 17. Qc3 {[%clk 0:01:18]}  Be7 {[%clk 0:00:56]} 18. Ra1 {[%clk 0:01:12]}  a6 {[%clk 0:00:50]} 19. Nd6+ {[%clk 0:01:02]}  Bxd6 {[%clk 0:00:48]} 20. exd6 {[%clk 0:01:02]}  O-O {[%clk 0:00:48]} 21. Qd3 {[%clk 0:00:55]}  Qb5 {[%clk 0:00:42]} 22. Qa3 {[%clk 0:00:46]}  Nf6 {[%clk 0:00:37]} 23. Kf3 {[%clk 0:00:44]}  Nd5 {[%clk 0:00:37]} 24. Qxa6 {[%clk 0:00:40]}  Qb2 {[%clk 0:00:31]} 25. Ra2 {[%clk 0:00:36]}  Qc3 {[%clk 0:00:30]} 26. Qa3 {[%clk 0:00:29]}  Rfd8 {[%clk 0:00:25]} 27. Qxc3 {[%clk 0:00:21]}  Nxc3 {[%clk 0:00:24]} 28. Ra6 {[%clk 0:00:17]}  Rxd6 {[%clk 0:00:23]} 29. f5 {[%clk 0:00:17]}  Nd5 {[%clk 0:00:21]} 30. Bf2 {[%clk 0:00:10]}  Rc8 {[%clk 0:00:12]} 31. Bg3 {[%clk 0:00:08]}  Rd7 {[%clk 0:00:12]} 32. c4 {[%clk 0:00:05]}  Nf6 {[%clk 0:00:10]} 33. fxe6 {[%clk 0:00:00]}  fxe6 {[%clk 0:00:10]} 0-1


[Site "https://www.chess.com"]

[Event "Titled Tuesday Blitz November 14 Late 2023"]
[White "Vargas, Mauricio"]
[Black "Ferrufino, Boris"]
[WhiteFideId "4404572"]
[BlackFideId "3300170"]
[WhiteElo "1850"]
[BlackElo "2180"]
[Result "0-1"]
[Round "4"]
[TimeControl "180+1"]
[Date "2023.11.14"]
[WhiteClock "0:00:00"]
[BlackClock "0:01:34"]
[Board "167"]

1. e4 {[%clk 0:02:59]}  c5 {[%clk 0:02:55]} 2. Nc3 {[%clk 0:02:58]}  Nc6 {[%clk 0:02:55]} 3. f4 {[%clk 0:02:59]}  d6 {[%clk 0:02:55]} 4. Nf3 {[%clk 0:03:00]}  Bg4 {[%clk 0:02:54]} 5. Bb5 {[%clk 0:03:01]}  e6 {[%clk 0:02:50]} 6. Bxc6+ {[%clk 0:03:02]}  bxc6 {[%clk 0:02:50]} 7. O-O {[%clk 0:03:02]}  g6 {[%clk 0:02:51]} 8. d3 {[%clk 0:03:03]}  Bg7 {[%clk 0:02:51]} 9. Qe1 {[%clk 0:03:01]}  Bxf3 {[%clk 0:02:50]} 10. Rxf3 {[%clk 0:03:00]}  Ne7 {[%clk 0:02:50]} 11. b3 {[%clk 0:02:58]}  O-O {[%clk 0:02:40]} 12. Rb1 {[%clk 0:02:57]}  Qa5 {[%clk 0:02:35]} 13. Bd2 {[%clk 0:02:55]}  Qc7 {[%clk 0:02:34]} 14. Na4 {[%clk 0:02:55]}  f6 {[%clk 0:02:33]} 15. c4 {[%clk 0:02:55]}  Rae8 {[%clk 0:02:33]} 16. Rh3 {[%clk 0:02:50]}  Kh8 {[%clk 0:02:29]} 17. Qh4 {[%clk 0:02:49]}  h6 {[%clk 0:02:27]} 18. g4 {[%clk 0:02:44]}  Kg8 {[%clk 0:02:26]} 19. g5 {[%clk 0:02:39]}  fxg5 {[%clk 0:02:25]} 20. fxg5 {[%clk 0:02:38]}  h5 {[%clk 0:02:25]} 21. Rf1 {[%clk 0:02:29]}  Rxf1+ {[%clk 0:02:21]} 22. Kxf1 {[%clk 0:02:29]}  Rf8+ {[%clk 0:02:22]} 23. Ke2 {[%clk 0:02:24]}  Nc8 {[%clk 0:02:11]} 24. Rf3 {[%clk 0:02:20]}  Rxf3 {[%clk 0:02:11]} 25. Kxf3 {[%clk 0:02:20]}  Be5 {[%clk 0:02:11]} 26. Qh3 {[%clk 0:02:08]}  Qf7+ {[%clk 0:02:10]} 27. Ke2 {[%clk 0:02:06]}  Nb6 {[%clk 0:02:05]} 28. Nc3 {[%clk 0:02:00]}  Nd7 {[%clk 0:02:04]} 29. Qf3 {[%clk 0:01:42]}  Qe7 {[%clk 0:02:01]} 30. h4 {[%clk 0:01:40]}  Bd4 {[%clk 0:01:59]} 31. Na4 {[%clk 0:01:39]}  Ne5 {[%clk 0:01:59]} 32. Qf6 {[%clk 0:01:30]}  Qxf6 {[%clk 0:01:58]} 33. gxf6 {[%clk 0:01:30]}  Ng4 {[%clk 0:01:58]} 34. Bg5 {[%clk 0:01:16]}  Nxf6 {[%clk 0:01:55]} 35. Kf3 {[%clk 0:01:03]}  Kf7 {[%clk 0:01:55]} 36. Bc1 {[%clk 0:00:58]}  Ng4 {[%clk 0:01:53]} 37. Nb2 {[%clk 0:00:53]}  Ne5+ {[%clk 0:01:49]} 38. Ke2 {[%clk 0:00:53]}  Bxb2 {[%clk 0:01:43]} 39. Bxb2 {[%clk 0:00:52]}  Kf6 {[%clk 0:01:43]} 40. Bc3 {[%clk 0:00:42]}  g5 {[%clk 0:01:43]} 41. hxg5+ {[%clk 0:00:38]}  Kxg5 {[%clk 0:01:44]} 42. Bd2+ {[%clk 0:00:34]}  Kg4 {[%clk 0:01:43]} 43. Ke3 {[%clk 0:00:26]}  h4 {[%clk 0:01:43]} 44. d4 {[%clk 0:00:25]}  cxd4+ {[%clk 0:01:43]} 45. Kxd4 {[%clk 0:00:25]}  c5+ {[%clk 0:01:43]} 46. Ke3 {[%clk 0:00:22]}  h3 {[%clk 0:01:43]} 47. Kf2 {[%clk 0:00:21]}  Nf3 {[%clk 0:01:42]} 48. Be3 {[%clk 0:00:00]}  a6 {[%clk 0:01:34]} 0-1


[Site "https://www.chess.com"]

[Event "Titled Tuesday Blitz November 14 Late 2023"]
[White "Hong, Andrew"]
[Black "Erigaisi Arjun"]
[WhiteFideId "2099438"]
[BlackFideId "35009192"]
[WhiteElo "2925"]
[BlackElo "3041"]
[Result "0-1"]
[Round "5"]
[TimeControl "180+1"]
[Date "2023.11.14"]
[WhiteClock "0:01:26"]
[BlackClock "0:01:27"]
[Board "4"]

1. e4 {[%clk 0:03:00]}  c6 {[%clk 0:02:58]} 2. d4 {[%clk 0:03:00]}  d5 {[%clk 0:02:59]} 3. e5 {[%clk 0:02:59]}  Bf5 {[%clk 0:02:58]} 4. Nf3 {[%clk 0:02:59]}  e6 {[%clk 0:02:58]} 5. Be2 {[%clk 0:03:00]}  c5 {[%clk 0:02:58]} 6. Be3 {[%clk 0:02:56]}  cxd4 {[%clk 0:02:56]} 7. Nxd4 {[%clk 0:02:55]}  Ne7 {[%clk 0:02:57]} 8. Nd2 {[%clk 0:02:55]}  Nbc6 {[%clk 0:02:54]} 9. N2f3 {[%clk 0:02:55]}  Be4 {[%clk 0:02:52]} 10. O-O {[%clk 0:02:55]}  Bxf3 {[%clk 0:02:51]} 11. Nxf3 {[%clk 0:02:56]}  Nf5 {[%clk 0:02:51]} 12. Bf4 {[%clk 0:02:56]}  Qb6 {[%clk 0:02:42]} 13. Bd3 {[%clk 0:02:52]}  Nfd4 {[%clk 0:02:40]} 14. Ng5 {[%clk 0:02:29]}  h6 {[%clk 0:02:26]} 15. Qh5 {[%clk 0:02:23]}  hxg5 {[%clk 0:02:21]} 16. Qxh8 {[%clk 0:02:21]}  gxf4 {[%clk 0:02:21]} 17. c3 {[%clk 0:02:17]}  Nxe5 {[%clk 0:02:18]} 18. Bh7 {[%clk 0:02:14]}  Ne2+ {[%clk 0:02:06]} 19. Kh1 {[%clk 0:02:14]}  Ng4 {[%clk 0:01:53]} 20. g3 {[%clk 0:02:00]}  f3 {[%clk 0:01:48]} 21. h4 {[%clk 0:01:57]}  Nxf2+ {[%clk 0:01:44]} 22. Kh2 {[%clk 0:01:58]}  Qc7 {[%clk 0:01:38]} 23. Rg1 {[%clk 0:01:54]}  O-O-O {[%clk 0:01:36]} 24. Raf1 {[%clk 0:01:40]}  Ng4+ {[%clk 0:01:28]} 25. Kh3 {[%clk 0:01:40]}  Ne3 {[%clk 0:01:29]} 26. Bd3 {[%clk 0:01:30]}  Nxf1 {[%clk 0:01:27]} 27. Bxe2 {[%clk 0:01:29]}  fxe2 {[%clk 0:01:28]} 28. Qh5 {[%clk 0:01:26]}  e1=Q {[%clk 0:01:27]} 0-1


[Site "https://www.chess.com"]